Workbook

Sheet 2014_изменения_публикация
L2: Приложение 1
L3: к приказу от 16.06.2014г. № 91
A6: План закупки товаров (работ, услуг)
A7: на 2014 год
A9: Наименование заказчика | F9: ОАО "Газпром межрегионгаз Нижний Новгород"
A10: Адрес местонахождения заказчика | F10: 603005, г.Нижний Новгород, ул.Верхне - Волжская набережная, д.5
A11: Телефон заказчика | F11: (831) 416-07-30
A12: Электронная почта заказчика | F12: Secretar@mrgnn.ru
A13: ИНН | F13: 5260070633
A14: КПП | F14: 525350001
A15: ОКАТО | F15: 22401373000
A17: Порядковый номер | B17: Код по ОКВЭД | C17: Код по ОКДП | D17: Условия договора | N17: Способ закупки | O17: Закупка в электронной форме
D18: Предмет договора | E18: Минимально необходимые требования, предъявляемые к закупаемым товарам (работам, услугам) | F18: Единица измерения | H18: Сведения о количестве (объеме) | I18: Регион поставки товаров (выполнение работ, оказания услуг) | K18: Сведения о начальной (максимальной) цене договора (цене лота) | L18: График осуществления процедур закупки
F19: Код по ОКЕИ | G19: наименование | I19: Код по ОКАТО | J19: наименование | L19: Планируемая дата или период размещения извещения о закупке (месяц, год) | M19: Срок исполнения договора (месяц, год) | O19: да/нет
A20: 1 | B20: 2 | C20: 3 | D20: 4 | E20: 5 | F20: 6 | G20: 7 | H20: 8 | I20: 9 | J20: 10 | K20: 11 | L20: 12 | M20: 13 | N20: 14 | O20: 15
A21: 1 | B21: 40.30 | C21: 4030000 | D21: Коммунальные услуги: теплоэнергия | F21: 876 | G21: усл.ед. | H21: 1 | I21: 22000000000 | J21: Нижегородская область | K21: =(12.39+2321.17)*1000*1.18 -> 2753600.8 | L21: Январь, 2014г. | M21: Декабрь, 2014г. | N21: Прямая закупка (закупка у единственного поставщика)
A22: 2 | B22: 40.10 | C22: 40100000 | D22: Коммунальные услуги: электроэнергия | F22: 876 | G22: усл.ед. | H22: 1 | I22: 22000000000 | J22: Нижегородская область | K22: =1892.39*1000*1.18 -> 2233020.2 | L22: Январь, 2014г. | M22: Декабрь, 2014г. | N22: Прямая закупка (закупка у единственного поставщика)
A23: 3 | B23: 40.10.2. | C23: 40100000 | D23: Коммунальные услуги: электроэнергия | F23: 876 | G23: усл.ед. | H23: 1 | I23: 17000000000 | J23: Владимирская область | K23: =2657.16*1000 -> 2657160 | L23: Январь, 2014г. | M23: Декабрь, 2014г. | N23: Прямая закупка (закупка у единственного поставщика)
A24: 4 | B24: 40.10.2 | C24: 40100000 | D24: Коммунальные услуги: электроэнергия для объектов АСКУГ | F24: 876 | G24: усл.ед. | H24: 1 | I24: 22000000000 | J24: Нижегородская область | K24: =100000*1.18 -> 118000 | L24: Январь, 2014г. | M24: Декабрь, 2014г. | N24: Прямая закупка (закупка у единственного поставщика)
A25: 5 | B25: 41.00.2 | C25: 9450020 | D25: Коммунальные услуги: водоснабжение | F25: 876 | G25: усл.ед. | H25: 1 | I25: 22000000000 | J25: Нижегородская область | K25: =(134.35+47.61)*1000*1.18 -> 214712.8 | L25: Январь, 2014г. | M25: Декабрь, 2014г. | N25: Прямая закупка (закупка у единственного поставщика)
A26: 6 | B26: 50.20.1 | C26: 5020020 | D26: Гарантийный ремонт автомобилей Тойота | F26: 876 | G26: усл.ед. | H26: 1 | I26: 22401000000 | J26: г.Нижний Новгород | K26: =40000+86390*1.18+10500 -> 152440.2 | L26: Январь, 2014г. | M26: Декабрь, 2014г. | N26: Прямая закупка (закупка у единственного поставщика)
A27: 7 | B27: 50.20.1 | C27: 5020020 | D27: Гарантийный ремонт автомобиля Мерседес | F27: 876 | G27: усл.ед. | H27: 1 | I27: 22401000000 | J27: г.Нижний Новгород | K27: 450000 | L27: Январь, 2014г. | M27: Декабрь, 2014г. | N27: Прямая закупка (закупка у единственного поставщика)
A28: 8 | B28: 50.20.1 | C28: 5020020 | D28: Гарантийный ремонт автомобиля Ауди | F28: 876 | G28: усл.ед. | H28: 1 | I28: 22401000000 | J28: г.Нижний Новгород | K28: 100000 | L28: Январь, 2014г. | M28: Декабрь, 2014г. | N28: Прямая закупка (закупка у единственного поставщика)
A29: 9 | B29: 63.21.24 | C29: 6322000 | D29: Расходы на стоянку автомобилей | F29: 876 | G29: усл.ед. | H29: 1 | I29: 22401000000 | J29: г.Нижний Новгород | K29: 217480 | L29: Январь, 2014г. | M29: Декабрь, 2014г. | N29: Прямая закупка (закупка у единственного поставщика)
A30: 10 | B30: 25.12 | C30: 5030110 | D30: Расходы на шиномонтаж | F30: 876 | G30: усл.ед. | H30: 1 | I30: 22401000000 | J30: г.Нижний Новгород | K30: =156410*1.18 -> 184563.8 | L30: Январь, 2014г. | M30: Декабрь, 2014г. | N30: Прямая закупка (закупка у единственного поставщика)
A31: 11 | B31: 74.30.7 | C31: 5020010 | D31: Расходы на технический осмотр | F31: 876 | G31: усл.ед. | H31: 1 | I31: 22401000000 | J31: г.Нижний Новгород | K31: =4010*1.18 -> 4731.8 | L31: Январь, 2014г. | M31: Декабрь, 2014г. | N31: Прямая закупка (закупка у единственного поставщика)
A32: 12 | D32: Расходы на получение пропусков | F32: 876 | G32: усл.ед. | H32: 1 | I32: 22401000000 | J32: г.Нижний Новгород | K32: =85120*1.18 -> 100441.6 | L32: Январь, 2014г. | M32: Март, 2014г. | N32: Прямая закупка (закупка у единственного поставщика)
A33: 13 | B33: 50.20.1 | C33: 5020850 | D33: Установка дополнительного оборудования на транспортные средства | F33: 876 | G33: усл.ед. | H33: 1 | I33: 22401000000 | J33: г.Нижний Новгород | K33: =211000*1.18 -> 248980 | L33: Январь, 2014г. | M33: Декабрь, 2014г. | N33: Прямая закупка (закупка у единственного поставщика)
A34: 14 | B34: 50.20.3 | C34: 5020100 | D34: Расходы на мойку автомобилей | F34: 876 | G34: усл.ед. | H34: 1 | I34: 22401000000 | J34: г.Нижний Новгород | K34: =258830*1.18 -> 305419.4 | L34: Январь, 2014г. | M34: Декабрь, 2014г. | N34: Прямая закупка (закупка у единственного поставщика)
A35: 15 | D35: Расходы на содержание автомобилей | F35: 876 | G35: усл.ед. | H35: 1 | I35: 22401000000 | J35: г.Нижний Новгород | K35: 70387 | L35: Январь, 2014г. | M35: Декабрь, 2014г. | N35: Прямая закупка (закупка у единственного поставщика)
A36: 16 | D36: Расходы на содержание автомобилей | F36: 876 | G36: усл.ед. | H36: 1 | I36: 22401000000 | J36: г.Нижний Новгород | K36: 174899.6 | L36: Январь, 2014г. | M36: Декабрь, 2014г. | N36: Открытый запрос предложений | O36: нет
A37: 17 | D37: Материалы на содержание зданий (моющие, чистящие средства, туал.бумага…) | F37: 876 | G37: усл.ед. | H37: 1 | I37: 22401000000 | J37: г.Нижний Новгород | K37: 487397.82 | L37: Январь, 2014г. | M37: Декабрь, 2014г. | N37: Прямая закупка (закупка у единственного поставщика)
A38: 18 | D38: Хозяйственный инвентарь (метлы, лопаты, лейки…) | F38: 876 | G38: усл.ед. | H38: 1 | I38: 22401000000 | J38: г.Нижний Новгород | K38: =120773+21791 -> 142564 | L38: Январь, 2014г. | M38: Декабрь, 2014г. | N38: Прямая закупка (закупка у единственного поставщика)
A39: 19 | D39: Электротехническая продукция (лампы, светильники…) | F39: 796 | G39: шт | H39: 976 | I39: 22401000000 | J39: г.Нижний Новгород | K39: 215456.2 | L39: Январь, 2014г. | M39: Декабрь, 2014г. | N39: Прямая закупка (закупка у единственного поставщика)
A40: 20 | D40: Прочие материалы на содержание зданий (лакокрасочные изделия, крепеж, соль тротуарная…) | F40: 876 | G40: усл.ед. | H40: 1 | I40: 22401000000 | J40: г.Нижний Новгород | K40: 37630.2 | L40: Январь, 2014г. | M40: Декабрь, 2014г. | N40: Прямая закупка (закупка у единственного поставщика)
A41: 21 | C41: 9010020 | D41: Вывоз бытовых отходов | F41: 876 | G41: усл.ед. | H41: 1 | I41: 22401000000 | J41: г.Нижний Новгород | K41: =(49640+5000)*1.18+16000 -> 80475.2 | L41: Январь, 2014г. | M41: Декабрь, 2014г. | N41: Прямая закупка (закупка у единственного поставщика)
A42: 22 | D42: Вывоз снега. Чистка снега с крыш. ЦО | F42: 876 | G42: усл.ед. | H42: 1 | I42: 22401000000 | J42: г.Нижний Новгород | K42: =(155290+41760)*1.18 -> 232519 | L42: Январь, 2014г. | M42: Декабрь, 2014г. | N42: Прямая закупка (закупка у единственного поставщика)
A43: 23 | D43: Чистка снега с крыш адм.здания г.Сергач | F43: 876 | G43: усл.ед. | H43: 1 | I43: 22248501000 | J43: г.Сергач | K43: =30000*1.18 -> 35400 | L43: Январь, 2014г. | M43: Декабрь, 2014г. | N43: Прямая закупка (закупка у единственного поставщика)
A44: 24 | D44: Аварийное обслуживание и затраты на ликвидацию аварии | F44: 876 | G44: усл.ед. | H44: 1 | I44: 22401000000 | J44: г.Нижний Новгород | K44: =(14800+55000)*1.18 -> 82364 | L44: Январь, 2014г. | M44: Декабрь, 2014г. | N44: Прямая закупка (закупка у единственного поставщика)
A45: 25 | D45: Договор на оперативно-техническое обслуживание ТП | F45: 876 | G45: усл.ед. | H45: 1 | I45: 22401000000 | J45: г.Нижний Новгород | K45: =76930*1.18+140870 -> 231647.4 | L45: Январь, 2014г. | M45: Декабрь, 2014г. | N45: Прямая закупка (закупка у единственного поставщика)
A46: 26 | D46: Обслуживание систем вентиляции и кондиционирования, ремонт, запчасти | F46: 876 | G46: усл.ед. | H46: 1 | I46: 22401000000 | J46: г.Нижний Новгород | K46: =(88210+34140)*1.18+24500+5000 -> 173873 | L46: Январь, 2014г. | M46: Декабрь, 2014г. | N46: Прямая закупка (закупка у единственного поставщика)
A47: 27 | D47: Абонентское ТО и ремонт газового оборудования кот.адм.зд.г.Сергач | F47: 876 | G47: усл.ед. | H47: 1 | I47: 22248501000 | J47: г.Сергач | K47: =9580*1.18 -> 11304.4 | L47: Январь, 2014г. | M47: Декабрь, 2014г. | N47: Прямая закупка (закупка у единственного поставщика)
A48: 28 | D48: Расходы по уходу за напольным покрытием ЦО. Расходы на мойку окон, химчистку занавесок и штор ЦО и Вл.обл. | F48: 876 | G48: усл.ед. | H48: 1 | I48: 22401000000 | J48: г.Нижний Новгород | K48: =40980*1.18+132550*1.18+70000 -> 274765.4 | L48: Январь, 2014г. | M48: Декабрь, 2014г. | N48: Прямая закупка (закупка у единственного поставщика)
A49: 29 | D49: Проведение дератизационных и дезинсекционных работ ЦО и Вл.обл. | F49: 876 | G49: усл.ед. | H49: 1 | I49: 22401000000 | J49: г.Нижний Новгород | K49: =32510*1.18+15000 -> 53361.8 | L49: Январь, 2014г. | M49: Декабрь, 2014г. | N49: Прямая закупка (закупка у единственного поставщика)
A50: 30 | D50: Ремонт и ТО системы охранно - пожарной безопасности и запчасти. Вл.обл. | F50: 876 | G50: усл.ед. | H50: 1 | I50: 17000000000 | J50: Владимирская область | K50: =70220+8000 -> 78220 | L50: Январь, 2014г. | M50: Декабрь, 2014г. | N50: Прямая закупка (закупка у единственного поставщика)
A51: 31 | D51: Аварийно-диспетчерское обслуживание газопроводов и газового оборуд.кот.г.Сергач | F51: 876 | G51: усл.ед. | H51: 1 | I51: 22248501000 | J51: г.Сергач | K51: =1350*1.18 -> 1593 | L51: Январь, 2014г. | M51: Декабрь, 2014г. | N51: Прямая закупка (закупка у единственного поставщика)
A52: 32 | D52: ТО автоматических ворот, приобретение зап.частей и комплектующих для обслуживания автомат. ворот | F52: 876 | G52: усл.ед. | H52: 1 | I52: 22401000000 | J52: г.Нижний Новгород | K52: =(20200+20000)*1.18 -> 47436 | L52: Январь, 2014г. | M52: Декабрь, 2014г. | N52: Прямая закупка (закупка у единственного поставщика)
A53: 33 | D53: Промывка, опрессовка отопит. системы админ. здания, поверка и испытание системы приточно-вытяжной вентиляции и состояния дымоходов котельной ЦО | F53: 876 | G53: усл.ед. | H53: 1 | I53: 22401000000 | J53: г.Нижний Новгород | K53: =44390*1.18 -> 52380.2 | L53: Январь, 2014г. | M53: Декабрь, 2014г. | N53: Прямая закупка (закупка у единственного поставщика)
A54: 34 | D54: Промывка, опрессовка отопит. системы админ. здания, поверка и испытание системы приточно-вытяжной вентиляции и состояния дымоходов котельной г.Сергач | F54: 876 | G54: усл.ед. | H54: 1 | I54: 22248501000 | J54: г.Сергач | K54: =10230*1.18 -> 12071.4 | L54: Январь, 2014г. | M54: Декабрь, 2014г. | N54: Прямая закупка (закупка у единственного поставщика)
A55: 35 | D55: Поверка эл/оборудования кот.г.Сергач | F55: 876 | G55: усл.ед. | H55: 1 | I55: 22248501000 | J55: г.Сергач | K55: =10500*1.18 -> 12390 | L55: Январь, 2014г. | M55: Декабрь, 2014г. | N55: Прямая закупка (закупка у единственного поставщика)
A56: 36 | D56: Поверка приборов учета газа, тепла кот.г.Сергач | F56: 876 | G56: усл.ед. | H56: 1 | I56: 22248501000 | J56: г.Сергач | K56: =10000*1.18 -> 11800 | L56: Январь, 2014г. | M56: Декабрь, 2014г. | N56: Прямая закупка (закупка у единственного поставщика)
A57: 37 | D57: Договор о демеркуризации ртутьсодержащих ламп, оргтехники, макулатуры ЦО и Вл.обл. | F57: 876 | G57: усл.ед. | H57: 1 | I57: 22401000000 | J57: г.Нижний Новгород | K57: =10000*1.18+4000 -> 15800 | L57: Январь, 2014г. | M57: Декабрь, 2014г. | N57: Прямая закупка (закупка у единственного поставщика)
A58: 38 | D58: Техническое обслуживание окон ЦО | F58: 876 | G58: усл.ед. | H58: 1 | I58: 22000000000 | J58: Нижегородская область | K58: =10000*1.18 -> 11800 | L58: Январь, 2014г. | M58: Декабрь, 2014г. | N58: Прямая закупка (закупка у единственного поставщика)
A59: 39 | D59: ТО уборочной и бытовой техники Вл.обл. | F59: 876 | G59: усл.ед. | H59: 1 | I59: 17000000000 | J59: Владимирская область | K59: =34280+3600 -> 37880 | L59: Январь, 2014г. | M59: Декабрь, 2014г. | N59: Прямая закупка (закупка у единственного поставщика)
A60: 40 | D60: Аренда МТК (в случае аварийного отключения водоснабжения) | F60: 876 | G60: усл.ед. | H60: 1 | I60: 22401000000 | J60: г.Нижний Новгород | K60: =10200*1.18 -> 12036 | L60: Январь, 2014г. | M60: Декабрь, 2014г. | N60: Прямая закупка (закупка у единственного поставщика)
A61: 41 | D61: Уборка помещения в арендуемом помещении г.Дзержинск | F61: 876 | G61: усл.ед. | H61: 1 | I61: 22421000000 | J61: г.Дзержинск | K61: =36810*1.18 -> 43435.8 | L61: Январь, 2014г. | M61: Декабрь, 2014г. | N61: Прямая закупка (закупка у единственного поставщика)
A62: 42 | D62: Уборка помещения в административном здании в г.Сергач | F62: 876 | G62: усл.ед. | H62: 1 | I62: 22248501000 | J62: г.Сергач | K62: =60410*1.18 -> 71283.8 | L62: Январь, 2014г. | M62: Декабрь, 2014г. | N62: Прямая закупка (закупка у единственного поставщика)
A63: 43 | D63: Поверка электрооборудования администр.здания ЦО | F63: 876 | G63: усл.ед. | H63: 1 | I63: 22401000000 | J63: г.Нижний Новгород | K63: =36120*1.18 -> 42621.6 | L63: Январь, 2014г. | M63: Декабрь, 2014г. | N63: Прямая закупка (закупка у единственного поставщика)
A64: 44 | D64: Прочие непредвиденные расходы | F64: 876 | G64: усл.ед. | H64: 1 | I64: 22401000000 | J64: г.Нижний Новгород | K64: =(50000+10000)*1.18 -> 70800 | L64: Январь, 2014г. | M64: Декабрь, 2014г. | N64: Прямая закупка (закупка у единственного поставщика)
A65: 45 | D65: Техобслуживание инженерных систем адм.здания г.Сергач | F65: 876 | G65: усл.ед. | H65: 1 | I65: 22248501000 | J65: г.Сергач | K65: =420370*1.18 -> 496036.6 | L65: Январь, 2014г. | M65: Декабрь, 2014г. | N65: Прямая закупка (закупка у единственного поставщика)
A66: 46 | D66: ТО и ремонт пожарной сигнализации адм.зд.г.Сергач | F66: 876 | G66: усл.ед. | H66: 1 | I66: 22248501000 | J66: г.Сергач | K66: =34510*1.18 -> 40721.8 | L66: Январь, 2014г. | M66: Декабрь, 2014г. | N66: Прямая закупка (закупка у единственного поставщика)
A67: 47 | D67: ТО и ремонт КНС адм.зд. г.Сергач | F67: 876 | G67: усл.ед. | H67: 1 | I67: 22248501000 | J67: г.Сергач | K67: =165510*1.18 -> 195301.8 | L67: Январь, 2014г. | M67: Декабрь, 2014г. | N67: Прямая закупка (закупка у единственного поставщика)
A68: 48 | B68: 45.3 | C68: 4520529 | D68: Договор на обслуживание электрокотлов и системы отопления, запчасти Вл.обл. | F68: 876 | G68: усл.ед. | H68: 1 | I68: 17000000000 | J68: Владимирская область | K68: =483310+35000 -> 518310 | L68: Январь, 2014г. | M68: Декабрь, 2014г. | N68: Прямая закупка (закупка у единственного поставщика)
A69: 49 | D69: Обслуживание системы водоподготовки, запчасти и ремонт Вл.обл. | F69: 876 | G69: усл.ед. | H69: 1 | I69: 17000000000 | J69: Владимирская область | K69: =203010+20000 -> 223010 | L69: Январь, 2014г. | M69: Декабрь, 2014г. | N69: Прямая закупка (закупка у единственного поставщика)
A70: 50 | D70: Обслуживание диз.генератора Вл.обл. | F70: 876 | G70: усл.ед. | H70: 1 | I70: 17000000000 | J70: Владимирская область | K70: 144110 | L70: Январь, 2014г. | M70: Декабрь, 2014г. | N70: Прямая закупка (закупка у единственного поставщика)
A71: 51 | D71: Техническое обслуживание деревяннных конструкций Вл.обл. | F71: 876 | G71: усл.ед. | H71: 1 | I71: 17000000000 | J71: Владимирская область | K71: =407630+6000 -> 413630 | L71: Январь, 2014г. | M71: Декабрь, 2014г. | N71: Прямая закупка (закупка у единственного поставщика)
A72: 52 | D72: ТО системы автоматической пожарной сигнализации в здании АТС-2 г.Семенов | F72: 876 | G72: усл.ед. | H72: 1 | I72: 22437000000 | J72: г.Семенов | K72: 14885.64 | L72: Январь, 2014г. | M72: Декабрь, 2014г. | N72: Прямая закупка (закупка у единственного поставщика)
A73: 53 | D73: Промывка и опрессовка системы отопления здания АТС-2 г.Семенов | F73: 876 | G73: усл.ед. | H73: 1 | I73: 22437000000 | J73: г.Семенов | K73: 29972 | L73: Январь, 2014г. | M73: Декабрь, 2014г. | N73: Прямая закупка (закупка у единственного поставщика)
A74: 54 | D74: Промывка и опрессовка системы отопления офисного помещения в р.п.Сосновское | F74: 876 | G74: усл.ед. | H74: 1 | I74: 22000000000 | J74: Нижегородская область | K74: 5643.33 | L74: Январь, 2014г. | M74: Декабрь, 2014г. | N74: Прямая закупка (закупка у единственного поставщика)
A75: 55 | D75: Прочие расходы на содержание помещений, сдаваемых в аренду | F75: 876 | G75: усл.ед. | H75: 1 | I75: 22000000000 | J75: Нижегородская область | K75: 75940.87 | L75: Январь, 2014г. | M75: Декабрь, 2014г. | N75: Прямая закупка (закупка у единственного поставщика)
A76: 56 | B76: 51.85.2 | C76: 5150410 | D76: Мебель | F76: 796 | G76: шт | H76: 87 | I76: 22401000000 | J76: г.Нижний Новгород | K76: 1049539.08 | L76: Январь, 2014г. | M76: Декабрь, 2014г. | N76: Открытый запрос предложений | O76: нет
A77: 57 | D77: Инвентарь | F77: 796 | G77: шт | H77: 73 | I77: 22401000000 | J77: г.Нижний Новгород | K77: =52392+20060+21240 -> 93692 | L77: Январь, 2014г. | M77: Декабрь, 2014г. | N77: Прямая закупка (закупка у единственного поставщика) | P77: Из стр.206 включены суммы 20060 (пылесос Керхер), 21240 (морозильная камера Вл.обл.)
A78: 58 | D78: Пломбирующий материал для участков СРГ | F78: 876 | G78: усл.ед. | H78: 1 | I78: 22401000000 | J78: г.Нижний Новгород | K78: =220000*1.18 -> 259600 | L78: Январь, 2014г. | M78: Июнь, 2014г. | N78: Прямая закупка (закупка у единственного поставщика)
A79: 59 | B79: 51.4 | C79: 5230000 | D79: Товары для офиса | F79: 796 | G79: шт | H79: 1136 | I79: 22401000000 | J79: г.Нижний Новгород | K79: =376865.04+17891.16+(22500+4550)*1.18+17700 -> 444375.2 | L79: Январь, 2014г. | M79: Декабрь, 2014г. | N79: Прямая закупка (закупка у единственного поставщика)
A80: 60 | D80: Прочие материалы | F80: 796 | G80: шт | H80: 508 | I80: 17000000000 | J80: Владимирская область | K80: 67704.98 | L80: Январь, 2014г. | M80: Декабрь, 2014г. | N80: Прямая закупка (закупка у единственного поставщика)
A81: 61 | B81: 51.64.2 | C81: 3010000 | D81: Картриджи | F81: 796 | G81: шт | H81: 360 | I81: 22401000000 | J81: г.Нижний Новгород | K81: 1078500 | L81: Январь, 2014г. | M81: Декабрь, 2014г. | N81: Открытый запрос предложений | O81: да
A82: 62 | D82: Расходные материалы | F82: 796 | G82: шт | H82: 59 | I82: 22401000000 | J82: г.Нижний Новгород | K82: =61000*1.18 -> 71980 | L82: Январь, 2014г. | M82: Декабрь, 2014г. | N82: Прямая закупка (закупка у единственного поставщика)
A83: 63 | D83: Расходы на газ на собственные нужды | F83: 876 | G83: усл.ед. | H83: 1 | I83: 22401000000 | J83: г.Нижний Новгород | K83: =153356.37*1.18 -> 180960.5166 | L83: Январь, 2014г. | M83: Декабрь, 2014г. | N83: Прямая закупка (закупка у единственного поставщика)
A84: 64 | B84: 70.2 | C84: 7010000 | D84: Расходы на аренду помещений | F84: 876 | G84: усл.ед. | H84: 1 | I84: 22000000000 | J84: Нижегородская область | K84: =1495705.45*1.18 -> 1764932.431 | L84: Январь, 2014г. | M84: Декабрь, 2014г. | N84: Прямая закупка (закупка у единственного поставщика)
A85: 65 | B85: 70.12.3 | C85: 7010000 | D85: Расходы на аренду земли | F85: 876 | G85: усл.ед. | H85: 1 | I85: 22000000000 | J85: Нижегородская область | K85: =710743.7+33537.38+690950 -> 1435231.08 | L85: Январь, 2014г. | M85: Декабрь, 2014г. | N85: Прямая закупка (закупка у единственного поставщика)
A86: 66 | B86: 71.3 | C86: 7120000 | D86: Аренда оборудования ЛВС | F86: 876 | G86: усл.ед. | H86: 1 | I86: 22401000000 | J86: г.Нижний Новгород | K86: =133346.52*1.18 -> 157348.8936 | L86: Январь, 2014г. | M86: Декабрь, 2014г. | N86: Прямая закупка (закупка у единственного поставщика)
A87: 67 | B87: 71.3 | C87: 7120000 | D87: Аренда АТС "Hicom" | F87: 876 | G87: усл.ед. | H87: 1 | I87: 22401000000 | J87: г.Нижний Новгород | K87: =1275049.83*1.18 -> 1504558.799 | L87: Январь, 2014г. | M87: Декабрь, 2014г. | N87: Прямая закупка (закупка у единственного поставщика)
A88: 68 | B88: 71.3 | C88: 7120000 | D88: Станция спутниковой связи Ku-диапазона | F88: 876 | G88: усл.ед. | H88: 1 | I88: 22401000000 | J88: г.Нижний Новгород | K88: =179109.56*1.18 -> 211349.2808 | L88: Январь, 2014г. | M88: Декабрь, 2014г. | N88: Прямая закупка (закупка у единственного поставщика)
A89: 69 | B89: 71.3 | C89: 7120000 | D89: Аренда оборудования видеоконференцсвязи | F89: 876 | G89: усл.ед. | H89: 1 | I89: 22401000000 | J89: г.Нижний Новгород | K89: =796037.76*1.18 -> 939324.5568 | L89: Январь, 2014г. | M89: Декабрь, 2014г. | N89: Прямая закупка (закупка у единственного поставщика)
A90: 70 | B90: 71.3 | C90: 7120000 | D90: Аренда СЗИ ЕИТП | F90: 876 | G90: усл.ед. | H90: 1 | I90: 22401000000 | J90: г.Нижний Новгород | K90: =324834.3*1.18 -> 383304.474 | L90: Январь, 2014г. | M90: Декабрь, 2014г. | N90: Прямая закупка (закупка у единственного поставщика)
A91: 71 | B91: 71.3 | C91: 7120000 | D91: Аренда КТС | F91: 876 | G91: усл.ед. | H91: 1 | I91: 22401000000 | J91: г.Нижний Новгород | K91: =2570640.84*1.18 -> 3033356.191 | L91: Январь, 2014г. | M91: Декабрь, 2014г. | N91: Прямая закупка (закупка у единственного поставщика)
A92: 72 | B92: 71.3 | C92: 7120000 | D92: Аренда системы телеметрии | F92: 876 | G92: усл.ед. | H92: 1 | I92: 22401000000 | J92: г.Нижний Новгород | K92: =14787412.2*1.18 -> 17449146.4 | L92: Январь, 2014г. | M92: Декабрь, 2014г. | N92: Прямая закупка (закупка у единственного поставщика)
A93: 73 | B93: 71.3 | C93: 7120000 | D93: Аренда ПИС | F93: 876 | G93: усл.ед. | H93: 1 | I93: 22401000000 | J93: г.Нижний Новгород | K93: =893148.84*1.18 -> 1053915.631 | L93: Январь, 2014г. | M93: Декабрь, 2014г. | N93: Прямая закупка (закупка у единственного поставщика)
A94: 74 | B94: 71.3 | C94: 7120000 | D94: Аренда диспетчерского пункта | F94: 876 | G94: усл.ед. | H94: 1 | I94: 22401000000 | J94: г.Нижний Новгород | K94: =760105.44*1.18 -> 896924.4192 | L94: Январь, 2014г. | M94: Декабрь, 2014г. | N94: Прямая закупка (закупка у единственного поставщика)
A95: 75 | B95: 66.03.1 | C95: 6611020 | D95: Добровольное мед.страхование | F95: 876 | G95: усл.ед. | H95: 1 | I95: 22401000000 | J95: г.Нижний Новгород | K95: =8694960+730000+135000 -> 9559960 | L95: Январь, 2014г. | M95: Декабрь, 2014г. | N95: Прямая закупка (закупка у единственного поставщика)
A96: 76 | B96: 66.03.2 | C96: 6613020 | D96: ОСАГО | F96: 876 | G96: усл.ед. | H96: 1 | I96: 22401000000 | J96: г.Нижний Новгород | K96: =367574.85+20233.54 -> 387808.39 | L96: Январь, 2014г. | M96: Декабрь, 2014г. | N96: Прямая закупка (закупка у единственного поставщика)
A97: 77 | B97: 66.03.2 | C97: 6613020 | D97: КАСКО | F97: 876 | G97: усл.ед. | H97: 1 | I97: 22401000000 | J97: г.Нижний Новгород | K97: =905153.7 -> 905153.7 | L97: Январь, 2014г. | M97: Декабрь, 2014г. | N97: Прямая закупка (закупка у единственного поставщика)
A98: 78 | B98: 66.03.2 | C98: 661301 | D98: Страхование УУГ в Арзамасском р-оне. Страхование ответственности за УУГ в Арзамасском и Краснооктябрьском р-нах (ответственность за ОПО) | F98: 876 | G98: усл.ед. | H98: 1 | I98: 22401000000 | J98: г.Нижний Новгород | K98: =100000+14150 -> 114150 | L98: Январь, 2014г. | M98: Декабрь, 2014г. | N98: Прямая закупка (закупка у единственного поставщика)
A99: 79 | B99: 66.03.2 | C99: 661301 | D99: Страхование имущества Вл.обл. | F99: 876 | G99: усл.ед. | H99: 1 | I99: 22401000000 | J99: г.Нижний Новгород | K99: 175808.84 | L99: Январь, 2014г. | M99: Декабрь, 2014г. | N99: Прямая закупка (закупка у единственного поставщика)
A100: 80 | B100: 45 | C100: 4500000 | D100: Капитальный ремонт нежилого здания АТС-2 | F100: 876 | G100: усл.ед. | H100: 1 | I100: 22437000000 | J100: г.Семенов | K100: 2456496.3 | L100: Январь, 2014г. | M100: Сентябрь, 2014г. | N100: Открытый запрос предложений | O100: нет
A101: 81 | B101: 29 | C101: 9430000 | D101: Расходы на непредвиденные ремонты прочих основных средств | F101: 876 | G101: усл.ед. | H101: 1 | I101: 22401000000 | J101: г.Нижний Новгород | K101: =250000*1.18 -> 295000 | L101: Январь, 2014г. | M101: Декабрь, 2014г. | N101: Прямая закупка (закупка у единственного поставщика)
A102: 82 | B102: 45.21 | C102: 4500000 | D102: Аварийные ремонты на объектах Владимирской области | F102: 876 | G102: усл.ед. | H102: 1 | I102: 17000000000 | J102: Владимирская область | K102: 140000 | L102: Январь, 2014г. | M102: Декабрь, 2014г. | N102: Прямая закупка (закупка у единственного поставщика)
A103: 83 | B103: 64.20.11 | C103: 6420000 | D103: Абонентская, междугородняя плата, зоновая связь | F103: 876 | G103: усл.ед. | H103: 1 | I103: 22401000000 | J103: г.Нижний Новгород | K103: =1472720*1.18 -> 1737809.6 | L103: Январь, 2014г. | M103: Декабрь, 2014г. | N103: Прямая закупка (закупка у единственного поставщика)
A104: 84 | B104: 64.20.11 | C104: 6420000 | D104: Сотовая связь | F104: 876 | G104: усл.ед. | H104: 1 | I104: 22401000000 | J104: г.Нижний Новгород | K104: =680000*1.18+61700 -> 864100 | L104: Январь, 2014г. | M104: Декабрь, 2014г. | N104: Прямая закупка (закупка у единственного поставщика)
A105: 85 | B105: 64.20.11 | C105: 6420000 | D105: Затраты на передачу данных АСКУГ. | F105: 876 | G105: усл.ед. | H105: 1 | I105: 22401000000 | J105: г.Нижний Новгород | K105: =588600*1.18 -> 694548 | L105: Январь, 2014г. | M105: Декабрь, 2014г. | N105: Прямая закупка (закупка у единственного поставщика)
A106: 86 | B106: 64.20.11 | C106: 6420000 | D106: Ведомственная связь | F106: 876 | G106: усл.ед. | H106: 1 | I106: 22401000000 | J106: г.Нижний Новгород | K106: =53380*1.18 -> 62988.4 | L106: Январь, 2014г. | M106: Декабрь, 2014г. | N106: Прямая закупка (закупка у единственного поставщика)
A107: 87 | B107: 71.3 | C107: 7120000 | D107: Плата за размещение оборудования | F107: 876 | G107: усл.ед. | H107: 1 | I107: 22401000000 | J107: г.Нижний Новгород | K107: =244050*1.18 -> 287979 | L107: Январь, 2014г. | M107: Декабрь, 2014г. | N107: Прямая закупка (закупка у единственного поставщика)
A108: 88 | B108: 64.20.11 | C108: 6420000 | D108: Прочие услуги связи | F108: 876 | G108: усл.ед. | H108: 1 | I108: 22401000000 | J108: г.Нижний Новгород | K108: =84000*1.18 -> 99120 | L108: Январь, 2014г. | M108: Декабрь, 2014г. | N108: Прямая закупка (закупка у единственного поставщика)
A109: 89 | B109: 64.20.11 | C109: 6420000 | D109: Затраты на передачу данных по участкам СРГ. | F109: 876 | G109: усл.ед. | H109: 1 | I109: 22401000000 | J109: г.Нижний Новгород | K109: =396450*1.18 -> 467811 | L109: Январь, 2014г. | M109: Декабрь, 2014г. | N109: Прямая закупка (закупка у единственного поставщика)
A110: 90 | B110: 64.20.11 | C110: 6420000 | D110: Передача данных от системы навигации автотранспорта | F110: 876 | G110: усл.ед. | H110: 1 | I110: 22401000000 | J110: г.Нижний Новгород | K110: =14810*1.18 -> 17475.8 | L110: Январь, 2014г. | M110: Декабрь, 2014г. | N110: Прямая закупка (закупка у единственного поставщика)
A111: 91 | B111: 74.60 | C111: 7523000 | D111: Охрана объектов Вл.обл. | F111: 876 | G111: усл.ед. | H111: 1 | I111: 17000000000 | J111: Владимирская область | K111: 2986600 | L111: Январь, 2014г. | M111: Декабрь, 2014г. | N111: Прямая закупка (закупка у единственного поставщика)
A112: 92 | B112: 74.60 | C112: 7523000 | D112: Охрана объектов ЦО | F112: 876 | G112: усл.ед. | H112: 1 | I112: 22401000000 | J112: г.Нижний Новгород | K112: =969397.46*12 -> 11632769.52 | L112: Январь, 2014г. | M112: Декабрь, 2014г. | N112: Прямая закупка (закупка у единственного поставщика)
A113: 93 | B113: 72.10 | C113: 7220033 | D113: Оказание услуг по информационно - технологическому сопровождению программного обеспечения "ИУС ГАЗ" ОАО "Газпром межрегионгаз Нижний Новгород" | E113: Информационно - технологическое сопровождение программного обеспечения "ИУС ГАЗ" | F113: 876 | G113: усл.ед. | H113: 1 | I113: 22401000000 | J113: г.Нижний Новгород | K113: 6807308.04 | L113: Май, 2014г. | M113: Июнь, 2017г. | N113: Открытый запрос предложений | O113: да
A114: 94 | B114: 72.20 | C114: 5235020 | D114: Сопровождение системы АИС Регионгаз (существующие компоненты) | F114: 876 | G114: усл.ед. | H114: 1 | I114: 22401000000 | J114: г.Нижний Новгород | K114: =3718291.5*1.18 -> 4387583.97 | L114: Январь, 2014г. | M114: Декабрь, 2014г. | N114: Прямая закупка (закупка у единственного поставщика) | O114: нет
A115: 95 | B115: 72.20 | C115: 5235020 | D115: Гранд -Смета | F115: 876 | G115: усл.ед. | H115: 1 | I115: 22401000000 | J115: г.Нижний Новгород | K115: =83335.61*1.18 -> 98336.0198 | L115: Январь, 2014г. | M115: Декабрь, 2014г. | N115: Прямая закупка (закупка у единственного поставщика)
A116: 96 | B116: 64.20 | C116: 6420000 | D116: ИНТЕРНЕТ ЦО | F116: 876 | G116: усл.ед. | H116: 1 | I116: 22401000000 | J116: г.Нижний Новгород | K116: =195187.2*1.18 -> 230320.896 | L116: Январь, 2014г. | M116: Декабрь, 2014г. | N116: Прямая закупка (закупка у единственного поставщика)
A117: 97 | B117: 64.20 | C117: 6420000 | D117: ИНТЕРНЕТ в арендуемом помещении в БЦ г. Москва | F117: 876 | G117: усл.ед. | H117: 1 | I117: 45000000000 | J117: г.Москва | K117: =77456.43*1.18 -> 91398.5874 | L117: Январь, 2014г. | M117: Декабрь, 2014г. | N117: Открытый запрос предложений | O117: нет
A118: 98 | D118: Инф. услуги по расходу нефтепродуктов | F118: 876 | G118: усл.ед. | H118: 1 | I118: 22401000000 | J118: г.Нижний Новгород | K118: =100540*1.18 -> 118637.2 | L118: Январь, 2014г. | M118: Декабрь, 2014г. | N118: Прямая закупка (закупка у единственного поставщика)
A119: 99 | D119: Предоставление доступа к инф.ресурсам системы (для закупок по 223 ФЗ) | F119: 876 | G119: усл.ед. | H119: 1 | I119: 22401000000 | J119: г.Нижний Новгород | K119: =100000*1.18 -> 118000 | L119: Январь, 2014г. | M119: Декабрь, 2014г. | N119: Прямая закупка (закупка у единственного поставщика)
A120: 100 | D120: Прочие информационно — вычислительные услуги | F120: 876 | G120: усл.ед. | H120: 1 | I120: 22401000000 | J120: г.Нижний Новгород | K120: =100000*1.18 -> 118000 | L120: Январь, 2014г. | M120: Декабрь, 2014г. | N120: Прямая закупка (закупка у единственного поставщика)
A121: 101 | B121: 72.20 | C121: 6420000 | D121: Информационная система "Руслана" | F121: 876 | G121: усл.ед. | H121: 1 | I121: 22401000000 | J121: г.Нижний Новгород | K121: =396000*1.18 -> 467280 | L121: Январь, 2014г. | M121: Декабрь, 2014г. | N121: Прямая закупка (закупка у единственного поставщика)
A122: 102 | B122: 72.20 | C122: 6420000 | D122: Информационная система "Консультант" | F122: 876 | G122: усл.ед. | H122: 1 | I122: 22401000000 | J122: г.Нижний Новгород | K122: =346089.41*1.18 -> 408385.5038 | L122: Январь, 2014г. | M122: Декабрь, 2014г. | N122: Прямая закупка (закупка у единственного поставщика)
A123: 103 | B123: 72.20 | C123: 6420000 | D123: Информационно-консультационное обслуживание | F123: 876 | G123: усл.ед. | H123: 1 | I123: 22401000000 | J123: г.Нижний Новгород | K123: =1261470*1.18 -> 1488534.6 | L123: Январь, 2014г. | M123: Декабрь, 2014г. | N123: Прямая закупка (закупка у единственного поставщика)
A124: 104 | B124: 80.42 | C124: 8090010 | D124: Семинары | F124: 876 | G124: усл.ед. | H124: 1 | I124: 22401000000 | J124: г.Нижний Новгород | K124: =675970*1.18 -> 797644.6 | L124: Январь, 2014г. | M124: Декабрь, 2014г. | N124: Прямая закупка (закупка у единственного поставщика)
A125: 105 | B125: 74.50 | C125: 9220000 | D125: Кадровое агенство | F125: 876 | G125: усл.ед. | H125: 1 | I125: 22401000000 | J125: г.Нижний Новгород | K125: =84103.03*1.18+60000*1.18 -> 170041.5754 | L125: Январь, 2014г. | M125: Декабрь, 2014г. | N125: Прямая закупка (закупка у единственного поставщика)
A126: 106 | B126: 92.40 | C126: 9220000 | D126: Метеоуслуги | F126: 876 | G126: усл.ед. | H126: 1 | I126: 22401000000 | J126: г.Нижний Новгород | K126: =47300*1.18 -> 55814 | L126: Январь, 2014г. | M126: Декабрь, 2014г. | N126: Прямая закупка (закупка у единственного поставщика)
A127: 107 | B127: 29.24.9 | C127: 7424000 | D127: Поверка метрологического оборудования | F127: 876 | G127: усл.ед. | H127: 1 | I127: 22000000000 | J127: Нижегородская область | K127: =472540*1.18 -> 557597.2 | L127: Январь, 2014г. | M127: Декабрь, 2014г. | N127: Прямая закупка (закупка у единственного поставщика) | O127: нет
A128: 108 | B128: 72.5 | C128: 3190180 | D128: Техническое обслуживание системы охранной сигнализации. Техническое обслуживание системы контроля управления доступом. Техническое обслуживание системы защиты информации. | F128: 876 | G128: усл.ед. | H128: 1 | I128: 22401000000 | J128: г.Нижний Новгород | K128: =569080*1.18 -> 671514.4 | L128: Январь, 2014г. | M128: Декабрь, 2014г. | N128: Прямая закупка (закупка у единственного поставщика)
A129: 109 | B129: 72.5 | C129: 3190180 | D129: Обслуживание средств охраны Владимирской области | F129: 876 | G129: усл.ед. | H129: 1 | I129: 17000000000 | J129: Владимирская область | K129: 605200 | L129: Январь, 2014г. | M129: Декабрь, 2014г. | N129: Прямая закупка (закупка у единственного поставщика)
A130: 110 | B130: 72.50 | C130: 7250010 | D130: Обслуживание вычислительной техники и оргтехники в представительстве | F130: 876 | G130: усл.ед. | H130: 1 | I130: 45000000000 | J130: г.Москва | K130: =58430*1.18 -> 68947.4 | L130: Январь, 2014г. | M130: Декабрь, 2014г. | N130: Прямая закупка (закупка у единственного поставщика)
A131: 111 | C131: 3319020 | D131: Техническое обслуживание систем безопасности здании ОАО "Газпром МРГ НН" (система пожаротушения ЦО и оповещения людей). ТО системы пожаротушения серверной ЦО. | F131: 876 | G131: усл.ед. | H131: 1 | I131: 22401000000 | J131: г.Нижний Новгород | K131: =254340+28080 -> 282420 | L131: Январь, 2014г. | M131: Декабрь, 2014г. | N131: Прямая закупка (закупка у единственного поставщика)
A132: 112 | D132: ТО франкировальной машины | F132: 876 | G132: усл.ед. | H132: 1 | I132: 22401000000 | J132: г.Нижний Новгород | K132: =5540*1.18 -> 6537.2 | L132: Январь, 2014г. | M132: Декабрь, 2014г. | N132: Прямая закупка (закупка у единственного поставщика)
A133: 113 | D133: Техническое обслуживание контрольно-кассовой техники | F133: 876 | G133: усл.ед. | H133: 1 | I133: 22401000000 | J133: г.Нижний Новгород | K133: =5890*1.18 -> 6950.2 | L133: Январь, 2014г. | M133: Декабрь, 2014г. | N133: Прямая закупка (закупка у единственного поставщика)
A134: 114 | D134: Подшивка бухгалтерских документов | F134: 876 | G134: усл.ед. | H134: 1 | I134: 22401000000 | J134: г.Нижний Новгород | K134: =230910 -> 230910 | L134: Январь, 2014г. | M134: Декабрь, 2014г. | N134: Прямая закупка (закупка у единственного поставщика)
A135: 115 | D135: Размещение информации в СМИ. Публикация публичного договора. | F135: 876 | G135: усл.ед. | H135: 1 | I135: 22401000000 | J135: г.Нижний Новгород | K135: =(0+0+40170)*1.18 -> 47400.6 | L135: Январь, 2014г. | M135: Декабрь, 2014г. | N135: Прямая закупка (закупка у единственного поставщика)
A136: 116 | D136: Информационно-аналитическое обслуживание в области проверки контрагентов | F136: 876 | G136: усл.ед. | H136: 1 | I136: 22401000000 | J136: г.Нижний Новгород | K136: =383040 -> 383040 | L136: Январь, 2014г. | M136: Декабрь, 2014г. | N136: Прямая закупка (закупка у единственного поставщика)
A137: 117 | D137: Проведение периодического контроля автоматизированного рабочего места (АРМ) РСП | F137: 876 | G137: усл.ед. | H137: 1 | I137: 22401000000 | J137: г.Нижний Новгород | K137: =23000*1.18 -> 27140 | L137: Январь, 2014г. | M137: Декабрь, 2014г. | N137: Прямая закупка (закупка у единственного поставщика)
A138: 118 | D138: Проведение периодического контроля выделенного помещения (РСП) | F138: 876 | G138: усл.ед. | H138: 1 | I138: 22401000000 | J138: г.Нижний Новгород | K138: =23000*1.18 -> 27140 | L138: Январь, 2014г. | M138: Декабрь, 2014г. | N138: Прямая закупка (закупка у единственного поставщика)
A139: 119 | D139: Обслуживание охранных систем в адм. здании г.Сергач | F139: 876 | G139: усл.ед. | H139: 1 | I139: 22248501000 | J139: г.Сергач | K139: =139280*1.18 -> 164350.4 | L139: Январь, 2014г. | M139: Декабрь, 2014г. | N139: Прямая закупка (закупка у единственного поставщика)
A140: 120 | D140: Обслуживание охранных систем в адм. здании г.Семенов | F140: 876 | G140: усл.ед. | H140: 1 | I140: 22437000000 | J140: г.Семенов | K140: =99640*1.18 -> 117575.2 | L140: Январь, 2014г. | M140: Декабрь, 2014г. | N140: Прямая закупка (закупка у единственного поставщика)
A141: 121 | C141: 3314181 | D141: Разработка проекта ПДВ для подземной стоянки автотранспорта. Разработка проекта нормативов образования отходов и лимитов на их размещение. | F141: 876 | G141: усл.ед. | H141: 1 | I141: 22401000000 | J141: г.Нижний Новгород | K141: =(60000+266000)*1.18 -> 384680 | L141: Январь, 2014г. | M141: Декабрь, 2014г. | N141: Прямая закупка (закупка у единственного поставщика)
A142: 122 | C142: 7250010 | D142: Работы по заправке и восстановлению картриджей | F142: 876 | G142: усл.ед. | H142: 1 | I142: 22401000000 | J142: г.Нижний Новгород | K142: =469380*1.18 -> 553868.4 | L142: Январь, 2014г. | M142: Декабрь, 2014г. | N142: Прямая закупка (закупка у единственного поставщика)
A143: 123 | C143: 7250010 | D143: Работы по техническому обслуживанию и текущему ремонту оргтехники | F143: 876 | G143: усл.ед. | H143: 1 | I143: 22401000000 | J143: г.Нижний Новгород | K143: =342820*1.18 -> 404527.6 | L143: Январь, 2014г. | M143: Декабрь, 2014г. | N143: Прямая закупка (закупка у единственного поставщика)
A144: 124 | D144: Усуги агента по организации Закупок | F144: 876 | G144: усл.ед. | H144: 1 | I144: 22401000000 | J144: г.Нижний Новгород | K144: =70000*1.18 -> 82600 | L144: Январь, 2014г. | M144: Декабрь, 2014г. | N144: Прямая закупка (закупка у единственного поставщика)
A145: 125 | D145: Агентский договор на заключение государственных контрактов на поставку газа с главными распорядителями средств федерального бюджета на 2011-2016гг. | F145: 876 | G145: усл.ед. | H145: 1 | I145: 22401000000 | J145: г.Нижний Новгород | K145: =25423.73*1.18 -> 30000.0014 | L145: Январь, 2014г. | M145: Декабрь, 2014г. | N145: Прямая закупка (закупка у единственного поставщика)
A146: 126 | C146: 1147401364 | D146: Сервисное обслуживние станции спутниковой связи Кu-диапазона | F146: 876 | G146: усл.ед. | H146: 1 | I146: 22401000000 | J146: г.Нижний Новгород | K146: =254240*1.18 -> 300003.2 | L146: Январь, 2014г. | M146: Декабрь, 2014г. | N146: Прямая закупка (закупка у единственного поставщика)
A147: 127 | D147: ТО кофе - машин. | F147: 876 | G147: усл.ед. | H147: 1 | I147: 22401000000 | J147: г.Нижний Новгород | K147: =5380*1.18 -> 6348.4 | L147: Январь, 2014г. | M147: Декабрь, 2014г. | N147: Прямая закупка (закупка у единственного поставщика)
A148: 128 | C148: 7250020 | D148: Обслуживание ИБП и компьютерной техники. | F148: 876 | G148: усл.ед. | H148: 1 | I148: 22401000000 | J148: г.Нижний Новгород | K148: =90000*1.18 -> 106200 | L148: Январь, 2014г. | M148: Декабрь, 2014г. | N148: Прямая закупка (закупка у единственного поставщика)
A149: 129 | D149: Прочие непредвиденные услуги | F149: 876 | G149: усл.ед. | H149: 1 | I149: 22401000000 | J149: г.Нижний Новгород | K149: =(79350+10000+57780+3880)*1.18 -> 178191.8 | L149: Январь, 2014г. | M149: Декабрь, 2014г. | N149: Прямая закупка (закупка у единственного поставщика)
A150: 130 | C150: 7412040 | D150: Аудиторские услуги | F150: 876 | G150: усл.ед. | H150: 1 | I150: 22401000000 | J150: г.Нижний Новгород | K150: =800000*1.18 -> 944000 | L150: Январь, 2014г. | M150: Декабрь, 2014г. | N150: Открытый конкурс
A151: 131 | C151: 7400000 | D151: Услуги по сбору денежных средств с населения | F151: 876 | G151: усл.ед. | H151: 1 | I151: 22401000000 | J151: г.Нижний Новгород | K151: =327200000*1.18 -> 386096000 | L151: Январь, 2014г. | M151: Декабрь, 2014г. | N151: Прямая закупка (закупка у единственного поставщика)
A152: 135 | D152: Внеплановый ремонт и последующая поверка оборудования УУГ ГРП, ШРП (ПУРГ). Поверка средств измерения УУГ на ГРП, ШРП (ПУРГ). | F152: 876 | G152: усл.ед. | H152: 1 | I152: 22401000000 | J152: г.Нижний Новгород | K152: =(337620+279920)*1.18 -> 728697.2 | L152: Декабрь, 2014г. | M152: Декабрь, 2015г. | N152: Открытый запрос предложений | O152: нет
A153: 136 | C153: 4540161 | D153: Расходы на покраску УУГ | F153: 876 | G153: усл.ед. | H153: 1 | I153: 22000000000 | J153: Нижегородская область | K153: =120630*1.18 -> 142343.4 | L153: Январь, 2014г. | M153: Декабрь, 2014г. | N153: Прямая закупка (закупка у единственного поставщика)
A154: 137 | D154: Затраты по эксплуатации диспетчерского пункта АСКУГ | F154: 876 | G154: усл.ед. | H154: 1 | I154: 22401000000 | J154: г.Нижний Новгород | K154: =443220*1.18 -> 522999.6 | L154: Январь, 2014г. | M154: Декабрь, 2014г. | N154: Прямая закупка (закупка у единственного поставщика)
A155: 138 | D155: Обслуживание Триколор Влад.обл. | F155: 876 | G155: усл.ед. | H155: 1 | I155: 17000000000 | J155: Владимирская область | K155: 48000 | L155: Январь, 2014г. | M155: Декабрь, 2014г. | N155: Прямая закупка (закупка у единственного поставщика)
A156: 139 | D156: Регистрация объектов, внесение записей ЕГР Вл.обл. | F156: 876 | G156: усл.ед. | H156: 1 | I156: 17000000000 | J156: Владимирская область | K156: 120000 | L156: Январь, 2014г. | M156: Декабрь, 2014г. | N156: Прямая закупка (закупка у единственного поставщика)
A157: 140 | D157: Услуги нотариуса Вл.обл. | F157: 876 | G157: усл.ед. | H157: 1 | I157: 17000000000 | J157: Владимирская область | K157: =3800+80000 -> 83800 | L157: Январь, 2014г. | M157: Декабрь, 2014г. | N157: Прямая закупка (закупка у единственного поставщика)
A158: 141 | D158: Оценка автомобилей | F158: 876 | G158: усл.ед. | H158: 1 | I158: 22401000000 | J158: г.Нижний Новгород | K158: 19790.4 | L158: Январь, 2014г. | M158: Декабрь, 2014г. | N158: Прямая закупка (закупка у единственного поставщика)
A159: 142 | D159: Госпошлина за снятие с учета а/м | F159: 876 | G159: усл.ед. | H159: 1 | I159: 22401000000 | J159: г.Нижний Новгород | K159: 1800 | L159: Январь, 2014г. | M159: Декабрь, 2014г. | N159: Прямая закупка (закупка у единственного поставщика)
A160: 143 | D160: Расходы на определение тех.состояния и утилизацию объектов перед продажей или списанием | F160: 876 | G160: усл.ед. | H160: 1 | I160: 22401000000 | J160: г.Нижний Новгород | K160: 200000 | L160: Январь, 2014г. | M160: Декабрь, 2014г. | N160: Прямая закупка (закупка у единственного поставщика)
A161: 144 | D161: Представительские расходы | F161: 876 | G161: усл.ед. | H161: 1 | I161: 22401000000 | J161: г.Нижний Новгород | K161: =600990*1.18+300000 -> 1009168.2 | L161: Январь, 2014г. | M161: Декабрь, 2014г. | N161: Прямая закупка (закупка у единственного поставщика)
A162: 145 | D162: Предварительные медицинские осмотры | F162: 876 | G162: усл.ед. | H162: 1 | I162: 22000000000 | J162: Нижегородская область | K162: =4470 -> 4470 | L162: Январь, 2014г. | M162: Декабрь, 2014г. | N162: Прямая закупка (закупка у единственного поставщика)
A163: 146 | D163: Периодические медицинские осмотры | F163: 876 | G163: усл.ед. | H163: 1 | I163: 22000000000 | J163: Нижегородская область | K163: =223440 -> 223440 | L163: Январь, 2014г. | M163: Декабрь, 2014г. | N163: Прямая закупка (закупка у единственного поставщика)
A164: 147 | D164: Предрейсовые медосмотры водителей автотранспортных средств | F164: 876 | G164: усл.ед. | H164: 1 | I164: 22000000000 | J164: Нижегородская область | K164: =170790*1.18 -> 201532.2 | L164: Январь, 2014г. | M164: Декабрь, 2014г. | N164: Прямая закупка (закупка у единственного поставщика)
A165: 148 | D165: Приобретение питьевой воды | F165: 796 | G165: шт | H165: 2640 | I165: 22401000000 | J165: г.Нижний Новгород | K165: =181640*1.18 -> 214335.2 | L165: Январь, 2014г. | M165: Декабрь, 2014г. | N165: Прямая закупка (закупка у единственного поставщика)
A166: 149 | D166: Обучение по охране труда, пожарной и электробезопасности | F166: 876 | G166: усл.ед. | H166: 1 | I166: 22401000000 | J166: г.Нижний Новгород | K166: =260890*1.18 -> 307850.2 | L166: Январь, 2014г. | M166: Декабрь, 2014г. | N166: Прямая закупка (закупка у единственного поставщика)
A167: 150 | D167: Приобретение необходимых приборов, эл. защитных инструментов и приспособлений, наглядных пособий, нормативно-технической литературы и т. п. | F167: 876 | G167: усл.ед. | H167: 1 | I167: 22401000000 | J167: г.Нижний Новгород | K167: =11000*1.18 -> 12980 | L167: Январь, 2014г. | M167: Декабрь, 2014г. | N167: Прямая закупка (закупка у единственного поставщика)
A168: 151 | C168: 2924694 | D168: Испытания средств индивидуальной защиты и инструментов | F168: 876 | G168: усл.ед. | H168: 1 | I168: 22401000000 | J168: г.Нижний Новгород | K168: =5000*1.18 -> 5900 | L168: Январь, 2014г. | M168: Декабрь, 2014г. | N168: Прямая закупка (закупка у единственного поставщика)
A169: 152 | D169: Ремонт и перезарядка огнетушителей | F169: 876 | G169: усл.ед. | H169: 1 | I169: 22401000000 | J169: г.Нижний Новгород | K169: 47884.59 | L169: Январь, 2014г. | M169: Декабрь, 2014г. | N169: Прямая закупка (закупка у единственного поставщика)
A170: 153 | D170: Приобретение огнетушителей | F170: 796 | G170: шт | H170: 39 | I170: 22401000000 | J170: г.Нижний Новгород | K170: 35605.14 | L170: Январь, 2014г. | M170: Декабрь, 2014г. | N170: Прямая закупка (закупка у единственного поставщика)
A171: 154 | D171: Подготовка кадров | F171: 876 | G171: усл.ед. | H171: 1 | I171: 22401000000 | J171: г.Нижний Новгород | K171: =584470*1.18+210000 -> 899674.6 | L171: Январь, 2014г. | M171: Декабрь, 2014г. | N171: Прямая закупка (закупка у единственного поставщика)
A172: 155 | D172: Канцтовары | F172: 796 | G172: шт | H172: 13216 | I172: 22401000000 | J172: г.Нижний Новгород | K172: =484445.61 -> 484445.61 | L172: Январь, 2014г. | M172: Декабрь, 2014г. | N172: Прямая закупка (закупка у единственного поставщика)
A173: 156 | D173: Бумага | F173: 796 | G173: шт | H173: 27768 | I173: 22401000000 | J173: г.Нижний Новгород | K173: =632877.21*1.18 -> 746795.1078 | L173: Март, 2014г. | M173: Сентябрь, 2014г. | N173: Открытый запрос предложений
A174: 157 | D174: Почтово-телеграфные услуги | F174: 876 | G174: усл.ед. | H174: 1 | I174: 22401000000 | J174: г.Нижний Новгород | K174: =2014106*1.18 -> 2376645.08 | L174: Январь, 2014г. | M174: Декабрь, 2014г. | N174: Прямая закупка (закупка у единственного поставщика)
A175: 158 | D175: Подписка на периодические издания и приобретение литературы | F175: 876 | G175: усл.ед. | H175: 1 | I175: 22401000000 | J175: г.Нижний Новгород | K175: =284140*1.18 -> 335285.2 | L175: Январь, 2014г. | M175: Декабрь, 2014г. | N175: Прямая закупка (закупка у единственного поставщика)
A176: 159 | D176: Расходы на рекламу | F176: 876 | G176: усл.ед. | H176: 1 | I176: 22401000000 | J176: г.Нижний Новгород | K176: 1623220 | L176: Январь, 2014г. | M176: Декабрь, 2014г. | N176: Прямая закупка (закупка у единственного поставщика)
A177: 160 | D177: Продление Лицензии Касперский | F177: 876 | G177: усл.ед. | H177: 1 | I177: 22401000000 | J177: г.Нижний Новгород | K177: 500000 | L177: Январь, 2014г. | M177: Декабрь, 2014г. | N177: Прямая закупка (закупка у единственного поставщика)
A178: 161 | D178: Программное обеспечение для диспетчерских пунктов | F178: 876 | G178: усл.ед. | H178: 1 | I178: 22401000000 | J178: г.Нижний Новгород | K178: 821430 | L178: Январь, 2014г. | M178: Декабрь, 2014г. | N178: Прямая закупка (закупка у единственного поставщика)
A179: 162 | D179: Программное обеспечение 1С Бухгалтерия | F179: 876 | G179: усл.ед. | H179: 1 | I179: 22401000000 | J179: г.Нижний Новгород | K179: 89720 | L179: Январь, 2014г. | M179: Декабрь, 2014г. | N179: Прямая закупка (закупка у единственного поставщика)
A180: 163 | D180: Договор правообладания на АИС"Регионгаз" | F180: 876 | G180: усл.ед. | H180: 1 | I180: 22401000000 | J180: г.Нижний Новгород | K180: =203880 -> 203880 | L180: Январь, 2014г. | M180: Декабрь, 2014г. | N180: Прямая закупка (закупка у единственного поставщика)
A181: 164 | D181: Договор правообладания на АСДОУ | F181: 876 | G181: усл.ед. | H181: 1 | I181: 22401000000 | J181: г.Нижний Новгород | K181: =10370 -> 10370 | L181: Январь, 2014г. | M181: Декабрь, 2014г. | N181: Прямая закупка (закупка у единственного поставщика)
A182: 165 | D182: Лицензионный платеж за использование товарных знаков ОАО "Газпром" | F182: 876 | G182: усл.ед. | H182: 1 | I182: 22401000000 | J182: г.Нижний Новгород | K182: =283200 -> 283200 | L182: Январь, 2014г. | M182: Декабрь, 2014г. | N182: Прямая закупка (закупка у единственного поставщика)
A183: 166 | D183: Лицензии Microsoft | F183: 876 | G183: усл.ед. | H183: 1 | I183: 22401000000 | J183: г.Нижний Новгород | K183: 1086940 | L183: Январь, 2014г. | M183: Декабрь, 2014г. | N183: Прямая закупка (закупка у единственного поставщика) | P183: ОАО Газпром: закупка лицензий на програмное обеспечение Microsoft (сервер баз данных)
A184: 167 | D184: Лицензия для СЗИ ЕИТП | F184: 876 | G184: усл.ед. | H184: 1 | I184: 22401000000 | J184: г.Нижний Новгород | K184: =300000 -> 300000 | L184: Январь, 2014г. | M184: Декабрь, 2014г. | N184: Прямая закупка (закупка у единственного поставщика)
A185: 168 | D185: Программное обеспечение "ITOB: Центр мониторинга" (для навигации автотранспорта) | F185: 876 | G185: усл.ед. | H185: 1 | I185: 22401000000 | J185: г.Нижний Новгород | K185: 7350 | L185: Январь, 2014г. | M185: Декабрь, 2014г. | N185: Прямая закупка (закупка у единственного поставщика)
A186: 169 | D186: Право на использование системы защиты информации Secret Net 5.1 | F186: 876 | G186: усл.ед. | H186: 1 | I186: 22401000000 | J186: г.Нижний Новгород | K186: 1090 | L186: Январь, 2014г. | M186: Декабрь, 2014г. | N186: Прямая закупка (закупка у единственного поставщика)
A187: 170 | D187: Бассейн | F187: 876 | G187: усл.ед. | H187: 1 | I187: 22401000000 | J187: г.Нижний Новгород | K187: 445544 | L187: Январь, 2014г. | M187: Июнь, 2014г. | N187: Прямая закупка (закупка у единственного поставщика)
A188: 170.1 | D188: Бассейн | F188: 876 | G188: усл.ед. | H188: 1 | I188: 22401000000 | J188: г.Нижний Новгород | K188: 365866 | L188: Август, 2014г. | M188: Декабрь, 2014г. | N188: Открытый запрос предложений | O188: нет
A189: 171 | D189: Абонементы на физкультурно - оздоровительные мероприятия. | F189: 876 | G189: усл.ед. | H189: 1 | I189: 22401000000 | J189: г.Нижний Новгород | K189: 291150 | L189: Январь, 2014г. | M189: Декабрь, 2014г. | N189: Прямая закупка (закупка у единственного поставщика)
A190: 172 | D190: Расходы на поздравления (поздравительные телеграммы и пр.) | F190: 876 | G190: усл.ед. | H190: 1 | I190: 22401000000 | J190: г.Нижний Новгород | K190: 50000 | L190: Январь, 2014г. | M190: Декабрь, 2014г. | N190: Прямая закупка (закупка у единственного поставщика)
A191: 173 | D191: Прочие непредвиденные расходы из прибыли | F191: 876 | G191: усл.ед. | H191: 1 | I191: 22401000000 | J191: г.Нижний Новгород | K191: 348300 | L191: Январь, 2014г. | M191: Декабрь, 2014г. | N191: Прямая закупка (закупка у единственного поставщика)
A192: 174 | D192: Организация Дня работника газовой промышленности | F192: 876 | G192: усл.ед. | H192: 1 | I192: 22401000000 | J192: г.Нижний Новгород | K192: 1014800 | L192: Январь, 2014г. | M192: Декабрь, 2014г. | N192: Открытый запрос предложений | O192: нет
A193: 175 | D193: Расходы по договору с ЗАО СР "ДРАГА" (реестродержатель) | F193: 876 | G193: усл.ед. | H193: 1 | I193: 22401000000 | J193: г.Нижний Новгород | K193: 73100 | L193: Январь, 2014г. | M193: Декабрь, 2014г. | N193: Прямая закупка (закупка у единственного поставщика)
A194: 176 | D194: Расходы на ремонт а/м после ДТП | F194: 876 | G194: усл.ед. | H194: 1 | I194: 22401000000 | J194: г.Нижний Новгород | K194: =200000 -> 200000 | L194: Январь, 2014г. | M194: Декабрь, 2014г. | N194: Прямая закупка (закупка у единственного поставщика)
A195: 177 | D195: Расходы на покупку газа | F195: 876 | G195: усл.ед. | H195: 1 | I195: 22401000000 | J195: г.Нижний Новгород | K195: =30146381910*1.18 -> 3.557273065e+10 | L195: Январь, 2014г. | M195: Декабрь, 2014г. | N195: Прямая закупка (закупка у единственного поставщика)
A196: 178 | D196: Приобретение представительской и имиджевой продукции, печать календарей | F196: 876 | G196: усл.ед. | H196: 1 | I196: 22401000000 | J196: г.Нижний Новгород | K196: 1004742.4 | L196: Январь, 2014г. | M196: Декабрь, 2014г. | N196: Открытый запрос предложений | O196: да
A197: 179 | D197: Участие в международном газовом форуме | F197: 876 | G197: усл.ед. | H197: 1 | I197: 22401000000 | J197: г.Нижний Новгород | K197: 416000 | L197: Январь, 2014г. | M197: Декабрь, 2014г. | N197: Прямая закупка (закупка у единственного поставщика)
A198: 180 | B198: 74.4 | D198: Размещение рекламно - информационных материалов | F198: 876 | G198: усл.ед. | H198: 1 | I198: 22401000000 | J198: г.Нижний Новгород | K198: 465500 | L198: Январь, 2014г. | M198: Декабрь, 2014г. | N198: Прямая закупка (закупка у единственного поставщика)
A199: 181 | D199: Регистрация домена и поддержание веб - сайта | F199: 876 | G199: усл.ед. | H199: 1 | I199: 22401000000 | J199: г.Нижний Новгород | K199: 29160 | L199: Январь, 2014г. | M199: Декабрь, 2014г. | N199: Прямая закупка (закупка у единственного поставщика)
A200: 182 | D200: Оказание услуг по организации воздушных перевозок | F200: 876 | G200: усл.ед. | H200: 1 | I200: 22401000000 | J200: г.Нижний Новгород | K200: 25961700 | L200: Январь, 2014г. | M200: Декабрь, 2014г. | N200: Прямая закупка (закупка у единственного поставщика)
A201: 183 | D201: Расходы по госпошлине и гос.регистрации | F201: 876 | G201: усл.ед. | H201: 1 | I201: 22401000000 | J201: г.Нижний Новгород | K201: 3088570 | L201: Январь, 2014г. | M201: Декабрь, 2014г. | N201: Прямая закупка (закупка у единственного поставщика)
A202: 184 | C202: 4560000 | D202: Проектные работы по реконструкции административного здания по адресу: г.Нижний Новгород, ул. В. Волжская набережная д.5. Изготовление проекта в соответствии с ТУ и техническим заданием. Затраты Заказчика: Сбор и анализ проектных данных. Получение ТУ и разрешительных документов. | E202: Проектные работы. | F202: 876 | G202: усл.ед. | H202: 1 | I202: 22401000000 | J202: г.Нижний Новгород | K202: 422256.07 | L202: Январь, 2014г. | M202: Май, 2014г. | N202: Открытый запрос предложений | O202: нет
A203: 185 | C203: 4560000 | D203: Проектные работы по реконструкции системы охранного наблюдения и контроля управления доступом (инв. 47010) ОАО «Газпром межрегионгаз Нижний Новгород» по адресу: г.Нижний Новгород, ул.Верхне - Волжская набережная, д.5. | E203: Проектные работы. | F203: 876 | G203: усл.ед. | H203: 1 | I203: 22401000000 | J203: г.Нижний Новгород | K203: 40768.4 | L203: Январь, 2014г. | M203: Март, 2014г. | N203: Открытый запрос предложений | O203: нет
A204: 186 | C204: 4560000 | D204: Проектные работы по установке узла учета газа в котельных №80, 81, 82, 83, 84 г.Сергач. | E204: Проектные работы. | F204: 876 | G204: усл.ед. | H204: 1 | I204: 22401000000 | J204: г.Нижний Новгород | K204: 304782.2 | L204: Январь, 2014г. | M204: Март, 2014г. | N204: Открытый запрос предложений | O204: нет
A205: 188 | B205: 50.30.2 | C205: 3430000 | D205: Автошины | F205: 796 | G205: шт | H205: 60 | I205: 22401000000 | J205: г.Нижний Новгород | K205: =(210169.49+50000)*1.18+62000 -> 368999.9982 | L205: Апрель, 2014г. | M205: Октябрь, 2014г. | N205: Прямая закупка (закупка у единственного поставщика) | O205: да
... 37 more rows
